[Event "Titled Tuesday Blitz June 6 Late 2023"]
[White "Ismayil, Malak"]
[Black "Veiga, Jose Francisco R P Neves"]
[WhiteFideId "13412604"]
[BlackFideId "1930087"]
[WhiteElo "1868"]
[BlackElo "2319"]
[Result "0-1"]
[Round "3"]
[TimeControl "180+2"]
[Date "2023.06.07"]
[WhiteClock "0:00:03"]
[BlackClock "0:00:06"]
[Board "76"]

1. e4 {[%clk 0:03:00]}  e5 {[%clk 0:02:57]} 2. Nf3 {[%clk 0:03:00]}  Nc6 {[%clk 0:02:58]} 3. Bc4 {[%clk 0:03:01]}  Bc5 {[%clk 0:02:57]} 4. d3 {[%clk 0:03:02]}  Nf6 {[%clk 0:02:58]} 5. Nc3 {[%clk 0:03:02]}  d6 {[%clk 0:02:58]} 6. h3 {[%clk 0:03:02]}  a6 {[%clk 0:02:58]} 7. Be3 {[%clk 0:03:03]}  Ba7 {[%clk 0:02:49]} 8. O-O {[%clk 0:03:02]}  Be6 {[%clk 0:02:49]} 9. Bb3 {[%clk 0:03:02]}  Qd7 {[%clk 0:02:47]} 10. Kh2 {[%clk 0:03:01]}  h6 {[%clk 0:02:46]} 11. d4 {[%clk 0:03:02]}  exd4 {[%clk 0:02:45]} 12. Nxd4 {[%clk 0:02:55]}  Nxd4 {[%clk 0:02:26]} 13. Bxd4 {[%clk 0:02:56]}  Bxd4 {[%clk 0:02:26]} 14. Qxd4 {[%clk 0:02:57]}  O-O {[%clk 0:02:27]} 15. f4 {[%clk 0:02:53]}  Rfe8 {[%clk 0:02:23]} 16. Rae1 {[%clk 0:02:52]}  Rad8 {[%clk 0:02:22]} 17. Qd3 {[%clk 0:02:44]}  b5 {[%clk 0:02:16]} 18. f5 {[%clk 0:02:37]}  Bxb3 {[%clk 0:02:16]} 19. axb3 {[%clk 0:02:38]}  Qe7 {[%clk 0:02:13]} 20. Nd5 {[%clk 0:02:18]}  Qe5+ {[%clk 0:02:13]} 21. Kh1 {[%clk 0:02:04]}  Nxe4 {[%clk 0:01:51]} 22. Nxc7 {[%clk 0:02:03]}  Ng3+ {[%clk 0:01:07]} 23. Qxg3 {[%clk 0:01:54]}  Qxg3 {[%clk 0:01:03]} 24. Nxe8 {[%clk 0:01:54]}  d5 {[%clk 0:00:44]} 25. f6 {[%clk 0:01:50]}  g6 {[%clk 0:00:41]} 26. Ng7 {[%clk 0:01:30]}  Qh4 {[%clk 0:00:21]} 27. Re7 {[%clk 0:01:06]}  Rd6 {[%clk 0:00:18]} 28. Ne8 {[%clk 0:00:59]}  Rc6 {[%clk 0:00:09]} 29. c3 {[%clk 0:01:00]}  d4 {[%clk 0:00:09]} 30. Rd7 {[%clk 0:00:48]}  dxc3 {[%clk 0:00:08]} 31. bxc3 {[%clk 0:00:47]}  Rxc3 {[%clk 0:00:09]} 32. Rd8 {[%clk 0:00:46]}  Kh7 {[%clk 0:00:05]} 33. Nd6 {[%clk 0:00:39]}  Rc7 {[%clk 0:00:04]} 34. Rf8 {[%clk 0:00:14]}  Qb4 {[%clk 0:00:01]} 35. Rxf7+ {[%clk 0:00:15]}  Rxf7 {[%clk 0:00:02]} 36. Nxf7 {[%clk 0:00:16]}  Kg8 {[%clk 0:00:02]} 37. Ne5 {[%clk 0:00:14]}  Qd6 {[%clk 0:00:02]} 38. f7+ {[%clk 0:00:13]}  Kf8 {[%clk 0:00:02]} 39. Nxg6+ {[%clk 0:00:13]}  Qxg6 {[%clk 0:00:03]} 40. Rf3 {[%clk 0:00:11]}  Qe6 {[%clk 0:00:03]} 41. Kh2 {[%clk 0:00:10]}  a5 {[%clk 0:00:04]} 42. g4 {[%clk 0:00:08]}  a4 {[%clk 0:00:04]} 43. bxa4 {[%clk 0:00:09]}  bxa4 {[%clk 0:00:05]} 44. Kg3 {[%clk 0:00:09]}  Qd6+ {[%clk 0:00:05]} 45. Kh4 {[%clk 0:00:09]}  a3 {[%clk 0:00:05]} 46. Rf2 {[%clk 0:00:06]}  a2 {[%clk 0:00:05]} 47. Rxa2 {[%clk 0:00:06]}  Qf6+ {[%clk 0:00:05]} 48. Kg3 {[%clk 0:00:05]}  Qe5+ {[%clk 0:00:05]} 49. Kh4 {[%clk 0:00:04]}  Kxf7 {[%clk 0:00:06]} 50. Rf2+ {[%clk 0:00:02]}  Kg6 {[%clk 0:00:06]} 51. Rf5 {[%clk 0:00:03]}  Qe1+ {[%clk 0:00:06]} 0-1


[Site "https://www.chess.com"]

[Event "Titled Tuesday Blitz June 6 Late 2023"]
[White "Popilski, Gil"]
[Black "Estrada Nieto, Julian"]
[WhiteFideId "2809060"]
[BlackFideId "5101018"]
[WhiteElo "2537"]
[BlackElo "2161"]
[Result "1-0"]
[Round "3"]
[TimeControl "180+2"]
[Date "2023.06.07"]
[WhiteClock "0:00:41"]
[BlackClock "0:00:06"]
[Board "81"]

1. d4 {[%clk 0:02:59]}  d5 {[%clk 0:02:59]} 2. c4 {[%clk 0:02:58]}  dxc4 {[%clk 0:03:00]} 3. Nc3 {[%clk 0:02:58]}  a6 {[%clk 0:02:59]} 4. e4 {[%clk 0:02:58]}  b5 {[%clk 0:02:58]} 5. a4 {[%clk 0:02:57]}  Bb7 {[%clk 0:02:56]} 6. axb5 {[%clk 0:02:46]}  axb5 {[%clk 0:02:56]} 7. Rxa8 {[%clk 0:02:46]}  Bxa8 {[%clk 0:02:56]} 8. Nxb5 {[%clk 0:02:47]}  Bxe4 {[%clk 0:02:52]} 9. Qa4 {[%clk 0:02:10]}  c6 {[%clk 0:02:22]} 10. Nc3 {[%clk 0:02:08]}  Bd3 {[%clk 0:02:09]} 11. Bxd3 {[%clk 0:02:06]}  cxd3 {[%clk 0:02:10]} 12. Nf3 {[%clk 0:02:06]}  e6 {[%clk 0:02:05]} 13. O-O {[%clk 0:02:06]}  Nf6 {[%clk 0:02:05]} 14. Bg5 {[%clk 0:01:54]}  Be7 {[%clk 0:01:58]} 15. Rd1 {[%clk 0:01:40]}  O-O {[%clk 0:01:57]} 16. Ne5 {[%clk 0:01:37]}  Nd5 {[%clk 0:01:36]} 17. Bxe7 {[%clk 0:01:34]}  Qxe7 {[%clk 0:01:15]} 18. Rxd3 {[%clk 0:01:30]}  Qb7 {[%clk 0:00:56]} 19. Nc4 {[%clk 0:01:19]}  Nd7 {[%clk 0:00:44]} 20. Ne4 {[%clk 0:01:10]}  Ra8 {[%clk 0:00:38]} 21. Qd1 {[%clk 0:01:08]}  Qb4 {[%clk 0:00:23]} 22. Ned6 {[%clk 0:01:03]}  h6 {[%clk 0:00:17]} 23. g3 {[%clk 0:00:55]}  N7f6 {[%clk 0:00:17]} 24. Rb3 {[%clk 0:00:49]}  Qa4 {[%clk 0:00:12]} 25. Rb8+ {[%clk 0:00:48]}  Kh7 {[%clk 0:00:12]} 26. Qxa4 {[%clk 0:00:47]}  Rxa4 {[%clk 0:00:11]} 27. Ne5 {[%clk 0:00:45]}  Ra1+ {[%clk 0:00:09]} 28. Kg2 {[%clk 0:00:45]}  Ne4 {[%clk 0:00:08]} 29. Nxe4 {[%clk 0:00:43]}  Re1 {[%clk 0:00:07]} 30. Nd6 {[%clk 0:00:42]}  Re2 {[%clk 0:00:07]} 31. Ndxf7 {[%clk 0:00:42]}  Rd2 {[%clk 0:00:06]} 32. Rh8# {[%clk 0:00:41]} 1-0


[Site "https://www.chess.com"]

[Event "Titled Tuesday Blitz June 6 Late 2023"]
[White "Injac, Teodora"]
[Black "Karas, Marek"]
[WhiteFideId "932400"]
[BlackFideId "14928558"]
[WhiteElo "2269"]
[BlackElo "2229"]
[Result "1/2-1/2"]
[Round "3"]
[TimeControl "180+2"]
[Date "2023.06.07"]
[WhiteClock "0:00:09"]
[BlackClock "0:00:05"]
[Board "82"]

1. Nf3 {[%clk 0:03:00]}  Nf6 {[%clk 0:02:59]} 2. d4 {[%clk 0:02:59]}  d5 {[%clk 0:02:58]} 3. c4 {[%clk 0:03:00]}  e6 {[%clk 0:02:57]} 4. e3 {[%clk 0:02:59]}  Nbd7 {[%clk 0:02:54]} 5. Nc3 {[%clk 0:02:58]}  c6 {[%clk 0:02:51]} 6. b3 {[%clk 0:02:51]}  Bb4 {[%clk 0:02:44]} 7. Bd2 {[%clk 0:02:51]}  O-O {[%clk 0:02:40]} 8. Bd3 {[%clk 0:02:48]}  Qa5 {[%clk 0:02:30]} 9. Qc2 {[%clk 0:02:43]}  dxc4 {[%clk 0:02:25]} 10. bxc4 {[%clk 0:02:42]}  e5 {[%clk 0:02:24]} 11. O-O {[%clk 0:02:35]}  exd4 {[%clk 0:02:14]} 12. exd4 {[%clk 0:02:34]}  Qh5 {[%clk 0:02:13]} 13. Rfe1 {[%clk 0:02:21]}  Bd6 {[%clk 0:02:05]} 14. h3 {[%clk 0:02:03]}  Re8 {[%clk 0:01:59]} 15. Ng5 {[%clk 0:01:53]}  Rxe1+ {[%clk 0:01:44]} 16. Rxe1 {[%clk 0:01:53]}  Nf8 {[%clk 0:01:42]} 17. c5 {[%clk 0:01:39]}  Bc7 {[%clk 0:01:17]} 18. Bc4 {[%clk 0:01:38]}  Be6 {[%clk 0:01:07]} 19. Nxe6 {[%clk 0:01:37]}  Nxe6 {[%clk 0:01:06]} 20. Bxe6 {[%clk 0:01:32]}  fxe6 {[%clk 0:01:07]} 21. Rxe6 {[%clk 0:01:31]}  Re8 {[%clk 0:00:58]} 22. Rxe8+ {[%clk 0:01:28]}  Qxe8 {[%clk 0:00:54]} 23. Qb3+ {[%clk 0:01:27]}  Qf7 {[%clk 0:00:53]} 24. Kf1 {[%clk 0:01:18]}  Qxb3 {[%clk 0:00:51]} 25. axb3 {[%clk 0:01:19]}  Kf7 {[%clk 0:00:51]} 26. Ke2 {[%clk 0:01:16]}  Ke6 {[%clk 0:00:51]} 27. Kd3 {[%clk 0:01:16]}  Nd5 {[%clk 0:00:47]} 28. Nxd5 {[%clk 0:01:11]}  Kxd5 {[%clk 0:00:47]} 29. g4 {[%clk 0:01:08]}  b5 {[%clk 0:00:46]} 30. cxb6 {[%clk 0:01:00]}  axb6 {[%clk 0:00:45]} 31. Bb4 {[%clk 0:00:58]}  Bf4 {[%clk 0:00:39]} 32. Bf8 {[%clk 0:00:57]}  g6 {[%clk 0:00:36]} 33. Bg7 {[%clk 0:00:54]}  b5 {[%clk 0:00:31]} 34. Ke2 {[%clk 0:00:53]}  Ke4 {[%clk 0:00:29]} 35. h4 {[%clk 0:00:47]}  Bd6 {[%clk 0:00:23]} 36. f3+ {[%clk 0:00:44]}  Kd5 {[%clk 0:00:22]} 37. Ke3 {[%clk 0:00:40]}  Ba3 {[%clk 0:00:19]} 38. f4 {[%clk 0:00:36]}  Bc1+ {[%clk 0:00:19]} 39. Kf3 {[%clk 0:00:36]}  Bb2 {[%clk 0:00:13]} 40. f5 {[%clk 0:00:37]}  gxf5 {[%clk 0:00:11]} 41. gxf5 {[%clk 0:00:38]}  c5 {[%clk 0:00:09]} 42. Ke2 {[%clk 0:00:28]}  cxd4 {[%clk 0:00:02]} 43. Kd3 {[%clk 0:00:28]}  Bc3 {[%clk 0:00:02]} 44. h5 {[%clk 0:00:25]}  b4 {[%clk 0:00:02]} 45. Bh6 {[%clk 0:00:16]}  Bb2 {[%clk 0:00:02]} 46. Bf4 {[%clk 0:00:16]}  Bc3 {[%clk 0:00:03]} 47. Bg5 {[%clk 0:00:16]}  Bb2 {[%clk 0:00:03]} 48. Be7 {[%clk 0:00:17]}  Bc3 {[%clk 0:00:03]} 49. Bf8 {[%clk 0:00:16]}  Be1 {[%clk 0:00:04]} 50. h6 {[%clk 0:00:15]}  Bc3 {[%clk 0:00:03]} 51. Bg7 {[%clk 0:00:15]}  Be1 {[%clk 0:00:03]} 52. Bxd4 {[%clk 0:00:15]}  Kd6 {[%clk 0:00:01]} 53. Be3 {[%clk 0:00:14]}  Kd5 {[%clk 0:00:02]} 54. Bd4 {[%clk 0:00:14]}  Kd6 {[%clk 0:00:01]} 55. Ke4 {[%clk 0:00:15]}  Kd7 {[%clk 0:00:01]} 56. Be5 {[%clk 0:00:15]}  Ke7 {[%clk 0:00:01]} 57. Kd5 {[%clk 0:00:15]}  Kf7 {[%clk 0:00:02]} 58. Kc4 {[%clk 0:00:15]}  Bd2 {[%clk 0:00:02]} 59. Bg7 {[%clk 0:00:14]}  Ke7 {[%clk 0:00:01]} 60. Bd4 {[%clk 0:00:11]}  Kf7 {[%clk 0:00:02]} 61. Bc5 {[%clk 0:00:10]}  Bxh6 {[%clk 0:00:02]} 62. Kxb4 {[%clk 0:00:09]}  Kf6 {[%clk 0:00:02]} 63. Bd4+ {[%clk 0:00:07]}  Kxf5 {[%clk 0:00:02]} 64. Kc5 {[%clk 0:00:07]}  Bf4 {[%clk 0:00:02]} 65. b4 {[%clk 0:00:07]}  h5 {[%clk 0:00:03]} 66. b5 {[%clk 0:00:07]}  h4 {[%clk 0:00:03]} 67. Bg1 {[%clk 0:00:07]}  h3 {[%clk 0:00:03]} 68. Kc6 {[%clk 0:00:07]}  h2 {[%clk 0:00:03]} 69. Bxh2 {[%clk 0:00:07]}  Bxh2 {[%clk 0:00:03]} 70. b6 {[%clk 0:00:07]}  Ke6 {[%clk 0:00:04]} 71. b7 {[%clk 0:00:08]}  Bb8 {[%clk 0:00:03]} 72. Kb6 {[%clk 0:00:08]}  Kd7 {[%clk 0:00:04]} 73. Kc5 {[%clk 0:00:08]}  Kc7 {[%clk 0:00:05]} 74. Kd5 {[%clk 0:00:09]}  Kxb7 {[%clk 0:00:05]} 1/2-1/2


[Site "https://www.chess.com"]

[Event "Titled Tuesday Blitz June 6 Late 2023"]
[White "Papayan, Oleg"]
[Black "MaryanKyrychenko"]
[WhiteFideId "4193911"]
[WhiteElo "2167"]
[BlackElo "2630"]
[Result "1/2-1/2"]
[Round "3"]
[TimeControl "180+2"]
[Date "2023.06.07"]
[WhiteClock "0:00:22"]
[BlackClock "0:01:07"]
[Board "83"]

1. e4 {[%clk 0:03:00]}  c5 {[%clk 0:02:58]} 2. d4 {[%clk 0:03:00]}  cxd4 {[%clk 0:02:58]} 3. Qxd4 {[%clk 0:03:01]}  Nc6 {[%clk 0:02:56]} 4. Qd3 {[%clk 0:03:02]}  g6 {[%clk 0:02:56]} 5. Nc3 {[%clk 0:03:02]}  Bg7 {[%clk 0:02:57]} 6. Nf3 {[%clk 0:03:03]}  d6 {[%clk 0:02:57]} 7. Be2 {[%clk 0:03:03]}  Nf6 {[%clk 0:02:58]} 8. O-O {[%clk 0:03:04]}  O-O {[%clk 0:02:59]} 9. Nd5 {[%clk 0:03:04]}  Be6 {[%clk 0:02:57]} 10. c3 {[%clk 0:03:04]}  Rc8 {[%clk 0:02:56]} 11. Bg5 {[%clk 0:03:03]}  Qa5 {[%clk 0:02:54]} 12. Nxf6+ {[%clk 0:02:45]}  exf6 {[%clk 0:02:53]} 13. Bf4 {[%clk 0:02:40]}  Rfd8 {[%clk 0:02:46]} 14. Rfd1 {[%clk 0:02:34]}  d5 {[%clk 0:02:41]} 15. h3 {[%clk 0:02:02]}  Qa4 {[%clk 0:02:24]} 16. b4 {[%clk 0:01:18]}  dxe4 {[%clk 0:02:10]} 17. Qxe4 {[%clk 0:01:19]}  f5 {[%clk 0:02:09]} 18. Qe3 {[%clk 0:01:13]}  Rxd1+ {[%clk 0:02:00]} 19. Bxd1 {[%clk 0:01:10]}  Qa3 {[%clk 0:02:00]} 20. Ng5 {[%clk 0:00:50]}  Qxc3 {[%clk 0:01:38]} 21. Rc1 {[%clk 0:00:39]}  Qxe3 {[%clk 0:01:32]} 22. Bxe3 {[%clk 0:00:40]}  Nxb4 {[%clk 0:01:19]} 23. Rxc8+ {[%clk 0:00:16]}  Bxc8 {[%clk 0:01:20]} 24. Bb3 {[%clk 0:00:09]}  Be6 {[%clk 0:01:13]} 25. Nxe6 {[%clk 0:00:09]}  fxe6 {[%clk 0:01:14]} 26. Bxe6+ {[%clk 0:00:10]}  Kh8 {[%clk 0:01:14]} 27. Bxa7 {[%clk 0:00:10]}  h6 {[%clk 0:01:11]} 28. Bc8 {[%clk 0:00:11]}  Nxa2 {[%clk 0:01:00]} 29. Bxb7 {[%clk 0:00:11]}  Nc3 {[%clk 0:01:01]} 30. Bf3 {[%clk 0:00:09]}  Kh7 {[%clk 0:01:00]} 31. Be3 {[%clk 0:00:10]}  g5 {[%clk 0:00:59]} 32. g4 {[%clk 0:00:08]}  f4 {[%clk 0:00:57]} 33. Bd2 {[%clk 0:00:09]}  Kg6 {[%clk 0:00:57]} 34. Bxc3 {[%clk 0:00:08]}  Bxc3 {[%clk 0:00:58]} 35. Be4+ {[%clk 0:00:08]}  Kf6 {[%clk 0:00:59]} 36. f3 {[%clk 0:00:09]}  Ke5 {[%clk 0:00:58]} 37. Kg2 {[%clk 0:00:09]}  Kd4 {[%clk 0:00:59]} 38. Bg6 {[%clk 0:00:09]}  Ke3 {[%clk 0:00:59]} 39. Bh5 {[%clk 0:00:10]}  Be1 {[%clk 0:00:59]} 40. Bg6 {[%clk 0:00:10]}  Bg3 {[%clk 0:01:00]} 41. Bh5 {[%clk 0:00:11]}  Bf2 {[%clk 0:01:00]} 42. Bg6 {[%clk 0:00:12]}  Bg3 {[%clk 0:01:01]} 43. Bh5 {[%clk 0:00:13]}  Be1 {[%clk 0:01:01]} 44. Bg6 {[%clk 0:00:14]}  Bc3 {[%clk 0:01:02]} 45. Bh5 {[%clk 0:00:15]}  Ke2 {[%clk 0:01:03]} 46. Bg6 {[%clk 0:00:16]}  Ke1 {[%clk 0:01:04]} 47. Bh5 {[%clk 0:00:16]}  Be5 {[%clk 0:01:04]} 48. Bg6 {[%clk 0:00:17]}  Bd4 {[%clk 0:01:05]} 49. Bh5 {[%clk 0:00:18]}  Be3 {[%clk 0:01:05]} 50. Bg6 {[%clk 0:00:19]}  Bd2 {[%clk 0:01:04]} 51. Bh5 {[%clk 0:00:20]}  Be3 {[%clk 0:01:05]} 52. Bg6 {[%clk 0:00:21]}  Bd2 {[%clk 0:01:06]} 53. Bh5 {[%clk 0:00:22]}  Be3 {[%clk 0:01:07]} 1/2-1/2


[Site "https://www.chess.com"]

[Event "Titled Tuesday Blitz June 6 Late 2023"]
[White "The_Sherman_Variation"]
[Black "Goryachkina, Aleksandra"]
[BlackFideId "4147103"]
[WhiteElo "2475"]
[BlackElo "2471"]
[Result "1/2-1/2"]
[Round "3"]
[TimeControl "180+2"]
[Date "2023.06.07"]
[WhiteClock "0:00:21"]
[BlackClock "0:00:12"]
[Board "84"]

1. g3 {[%clk 0:03:00]}  c5 {[%clk 0:02:57]} 2. Bg2 {[%clk 0:02:58]}  Nc6 {[%clk 0:02:57]} 3. c4 {[%clk 0:02:57]}  g6 {[%clk 0:02:57]} 4. Nc3 {[%clk 0:02:57]}  Bg7 {[%clk 0:02:57]} 5. Nf3 {[%clk 0:02:58]}  Nf6 {[%clk 0:02:56]} 6. O-O {[%clk 0:02:58]}  O-O {[%clk 0:02:49]} 7. a3 {[%clk 0:02:58]}  d6 {[%clk 0:02:47]} 8. Rb1 {[%clk 0:02:57]}  Bf5 {[%clk 0:02:38]} 9. d3 {[%clk 0:02:57]}  a5 {[%clk 0:02:38]} 10. Bd2 {[%clk 0:02:55]}  Qd7 {[%clk 0:02:34]} 11. Nd5 {[%clk 0:02:45]}  Nxd5 {[%clk 0:02:26]} 12. cxd5 {[%clk 0:02:46]}  Nd4 {[%clk 0:02:26]} 13. Nxd4 {[%clk 0:02:43]}  Bxd4 {[%clk 0:02:23]} 14. e4 {[%clk 0:02:38]}  Bh3 {[%clk 0:02:11]} 15. Bc3 {[%clk 0:02:38]}  Bxg2 {[%clk 0:02:05]} 16. Kxg2 {[%clk 0:02:38]}  Rfc8 {[%clk 0:01:44]} 17. Qd2 {[%clk 0:02:20]}  Qb5 {[%clk 0:01:27]} 18. f4 {[%clk 0:02:12]}  Qb3 {[%clk 0:01:20]} 19. f5 {[%clk 0:02:02]}  b5 {[%clk 0:01:10]} 20. Rbc1 {[%clk 0:01:36]}  b4 {[%clk 0:01:07]} 21. Bxd4 {[%clk 0:01:35]}  cxd4 {[%clk 0:01:07]} 22. fxg6 {[%clk 0:01:24]}  hxg6 {[%clk 0:00:58]} 23. Qf2 {[%clk 0:01:22]}  f6 {[%clk 0:00:50]} 24. Qxd4 {[%clk 0:01:19]}  bxa3 {[%clk 0:00:47]} 25. bxa3 {[%clk 0:01:16]}  Qxa3 {[%clk 0:00:47]} 26. Rc4 {[%clk 0:01:05]}  Rxc4 {[%clk 0:00:41]} 27. Qxc4 {[%clk 0:01:01]}  Rb8 {[%clk 0:00:37]} 28. Qc7 {[%clk 0:00:54]}  Rb2+ {[%clk 0:00:37]} 29. Rf2 {[%clk 0:00:34]}  Rxf2+ {[%clk 0:00:33]} 30. Kxf2 {[%clk 0:00:35]}  Kf7 {[%clk 0:00:24]} 31. Qc8 {[%clk 0:00:25]}  Qb2+ {[%clk 0:00:18]} 32. Kf3 {[%clk 0:00:24]}  Qb3 {[%clk 0:00:15]} 33. Qe6+ {[%clk 0:00:23]}  Kf8 {[%clk 0:00:15]} 34. Qc8+ {[%clk 0:00:23]}  Kg7 {[%clk 0:00:15]} 35. Ke3 {[%clk 0:00:20]}  Qb6+ {[%clk 0:00:14]} 36. Ke2 {[%clk 0:00:20]}  a4 {[%clk 0:00:12]} 37. Qd7 {[%clk 0:00:20]}  Qb2+ {[%clk 0:00:10]} 38. Kf3 {[%clk 0:00:19]}  a3 {[%clk 0:00:10]} 39. Qxe7+ {[%clk 0:00:19]}  Kg8 {[%clk 0:00:10]} 40. Qe8+ {[%clk 0:00:19]}  Kg7 {[%clk 0:00:11]} 41. Qe7+ {[%clk 0:00:20]}  Kg8 {[%clk 0:00:11]} 42. Qe8+ {[%clk 0:00:21]}  Kg7 {[%clk 0:00:12]} 43. Qe7+ {[%clk 0:00:21]} 1/2-1/2


[Site "https://www.chess.com"]

[Event "Titled Tuesday Blitz June 6 Late 2023"]
[White "Van Dael, Siem"]
[Black "Abrahamyan, Tatev"]
[WhiteFideId "1049771"]
[BlackFideId "13301918"]
[WhiteElo "2336"]
[BlackElo "2342"]
[Result "1-0"]
[Round "3"]
[TimeControl "180+2"]
[Date "2023.06.07"]
[WhiteClock "0:00:04"]
[BlackClock "0:00:17"]
[Board "88"]

1. e4 {[%clk 0:02:58]}  e6 {[%clk 0:02:59]} 2. d4 {[%clk 0:02:53]}  d5 {[%clk 0:03:00]} 3. Nc3 {[%clk 0:02:52]}  Bb4 {[%clk 0:02:59]} 4. e5 {[%clk 0:02:51]}  c5 {[%clk 0:02:58]} 5. a3 {[%clk 0:02:50]}  Bxc3+ {[%clk 0:02:59]} 6. bxc3 {[%clk 0:02:51]}  Ne7 {[%clk 0:02:59]} 7. Qg4 {[%clk 0:02:44]}  O-O {[%clk 0:02:58]} 8. Bd3 {[%clk 0:02:43]}  Nbc6 {[%clk 0:02:57]} 9. Nf3 {[%clk 0:02:40]}  f5 {[%clk 0:02:56]} 10. Qg3 {[%clk 0:02:36]}  Qa5 {[%clk 0:02:53]} 11. Bd2 {[%clk 0:02:30]}  Qa4 {[%clk 0:02:52]} 12. O-O {[%clk 0:02:21]}  c4 {[%clk 0:02:40]} 13. Be2 {[%clk 0:02:13]}  Qxc2 {[%clk 0:02:40]} 14. Rfe1 {[%clk 0:01:58]}  Qa4 {[%clk 0:02:36]} 15. h4 {[%clk 0:01:45]}  Bd7 {[%clk 0:02:31]} 16. Rab1 {[%clk 0:01:44]}  b6 {[%clk 0:02:20]} 17. Bg5 {[%clk 0:01:30]}  Qxa3 {[%clk 0:01:40]} 18. Rec1 {[%clk 0:00:59]}  Qa6 {[%clk 0:01:29]} 19. h5 {[%clk 0:00:42]}  Kh8 {[%clk 0:01:15]} 20. h6 {[%clk 0:00:32]}  g6 {[%clk 0:01:14]} 21. Bf6+ {[%clk 0:00:30]}  Kg8 {[%clk 0:01:13]} 22. Qh4 {[%clk 0:00:28]}  Rae8 {[%clk 0:01:11]} 23. Ng5 {[%clk 0:00:20]}  Qb7 {[%clk 0:01:07]} 24. g4 {[%clk 0:00:19]}  b5 {[%clk 0:01:03]} 25. Kh2 {[%clk 0:00:13]}  b4 {[%clk 0:01:00]} 26. Rg1 {[%clk 0:00:05]}  a5 {[%clk 0:00:59]} 27. gxf5 {[%clk 0:00:06]}  Nxf5 {[%clk 0:00:56]} 28. Qh3 {[%clk 0:00:05]}  Bc8 {[%clk 0:00:55]} 29. Bh5 {[%clk 0:00:04]}  Nce7 {[%clk 0:00:34]} 30. Nxh7 {[%clk 0:00:03]}  Kxh7 {[%clk 0:00:34]} 31. Bxg6+ {[%clk 0:00:01]}  Nxg6 {[%clk 0:00:34]} 32. Rxg6 {[%clk 0:00:01]}  Kxg6 {[%clk 0:00:21]} 33. Rg1+ {[%clk 0:00:02]}  Kh7 {[%clk 0:00:20]} 34. Rg7+ {[%clk 0:00:02]}  Nxg7 {[%clk 0:00:17]} 35. hxg7+ {[%clk 0:00:03]}  Kg8 {[%clk 0:00:18]} 36. Qh8+ {[%clk 0:00:02]}  Kf7 {[%clk 0:00:18]} 37. gxf8=Q+ {[%clk 0:00:02]}  Rxf8 {[%clk 0:00:19]} 38. Qh5+ {[%clk 0:00:02]}  Kg8 {[%clk 0:00:19]} 39. Qg6+ {[%clk 0:00:03]}  Qg7 {[%clk 0:00:17]} 40. Qxg7# {[%clk 0:00:04]} 1-0


[Site "https://www.chess.com"]

[Event "Titled Tuesday Blitz June 6 Late 2023"]
[White "Domingo Nunez, Alejandro"]
[Black "Eidelman, Gabriel"]
[WhiteFideId "22245561"]
[BlackFideId "30910544"]
[WhiteElo "2291"]
[BlackElo "2453"]
[Result "1/2-1/2"]
[Round "3"]
[TimeControl "180+2"]
[Date "2023.06.07"]
[WhiteClock "0:00:28"]
[BlackClock "0:00:02"]
[Board "91"]

1. Nf3 {[%clk 0:03:00]}  Nf6 {[%clk 0:02:59]} 2. g3 {[%clk 0:03:01]}  g6 {[%clk 0:02:59]} 3. b3 {[%clk 0:03:02]}  Bg7 {[%clk 0:03:00]} 4. Bb2 {[%clk 0:03:02]}  O-O {[%clk 0:03:00]} 5. Bg2 {[%clk 0:03:02]}  d6 {[%clk 0:02:59]} 6. d4 {[%clk 0:03:02]}  Nbd7 {[%clk 0:02:55]} 7. O-O {[%clk 0:03:01]}  Re8 {[%clk 0:02:52]} 8. c4 {[%clk 0:03:01]}  e5 {[%clk 0:02:51]} 9. dxe5 {[%clk 0:03:01]}  dxe5 {[%clk 0:02:47]} 10. Nc3 {[%clk 0:02:45]}  c6 {[%clk 0:02:42]} 11. Qc2 {[%clk 0:02:40]}  Qe7 {[%clk 0:02:32]} 12. Rad1 {[%clk 0:02:39]}  b6 {[%clk 0:02:15]} 13. Ng5 {[%clk 0:01:53]}  Bb7 {[%clk 0:01:54]} 14. Rd2 {[%clk 0:01:49]}  Rad8 {[%clk 0:01:51]} 15. Rfd1 {[%clk 0:01:47]}  Nf8 {[%clk 0:01:43]} 16. e3 {[%clk 0:01:30]}  Rxd2 {[%clk 0:01:24]} 17. Qxd2 {[%clk 0:01:30]}  c5 {[%clk 0:01:08]} 18. Bxb7 {[%clk 0:01:10]}  Qxb7 {[%clk 0:01:08]} 19. Nb5 {[%clk 0:01:11]}  Re7 {[%clk 0:00:19]} 20. Qd8 {[%clk 0:01:11]}  h6 {[%clk 0:00:10]} 21. Nh3 {[%clk 0:00:50]}  a6 {[%clk 0:00:10]} 22. Nc3 {[%clk 0:00:38]}  Rd7 {[%clk 0:00:09]} 23. Rxd7 {[%clk 0:00:37]}  Qxd7 {[%clk 0:00:10]} 24. Qxd7 {[%clk 0:00:29]}  N8xd7 {[%clk 0:00:09]} 25. Na4 {[%clk 0:00:29]}  Ne4 {[%clk 0:00:07]} 26. Kf1 {[%clk 0:00:19]}  b5 {[%clk 0:00:07]} 27. cxb5 {[%clk 0:00:19]}  axb5 {[%clk 0:00:08]} 28. Nc3 {[%clk 0:00:19]}  Nxc3 {[%clk 0:00:07]} 29. Bxc3 {[%clk 0:00:20]}  b4 {[%clk 0:00:05]} 30. Bb2 {[%clk 0:00:20]}  e4 {[%clk 0:00:04]} 31. Bxg7 {[%clk 0:00:20]}  Kxg7 {[%clk 0:00:05]} 32. Nf4 {[%clk 0:00:20]}  Nb6 {[%clk 0:00:05]} 33. Ke2 {[%clk 0:00:20]}  Kf6 {[%clk 0:00:06]} 34. Kd2 {[%clk 0:00:18]}  Ke5 {[%clk 0:00:06]} 35. Kc2 {[%clk 0:00:19]}  Nd5 {[%clk 0:00:05]} 36. Ne2 {[%clk 0:00:17]}  f5 {[%clk 0:00:05]} 37. Kb2 {[%clk 0:00:17]}  g5 {[%clk 0:00:05]} 38. h4 {[%clk 0:00:16]}  Kd6 {[%clk 0:00:02]} 39. hxg5 {[%clk 0:00:15]}  hxg5 {[%clk 0:00:03]} 40. a3 {[%clk 0:00:15]}  bxa3+ {[%clk 0:00:02]} 41. Kxa3 {[%clk 0:00:16]}  Nb4 {[%clk 0:00:03]} 42. Nc1 {[%clk 0:00:14]}  Nd3 {[%clk 0:00:03]} 43. Nxd3 {[%clk 0:00:14]}  exd3 {[%clk 0:00:04]} 44. Kb2 {[%clk 0:00:14]}  Ke5 {[%clk 0:00:04]} 45. Kc3 {[%clk 0:00:15]}  Ke4 {[%clk 0:00:04]} 46. Kd2 {[%clk 0:00:15]}  g4 {[%clk 0:00:04]} 47. Kc3 {[%clk 0:00:15]}  Kf3 {[%clk 0:00:05]} 48. Kxd3 {[%clk 0:00:15]}  Kxf2 {[%clk 0:00:05]} 49. Kc4 {[%clk 0:00:16]}  Kxg3 {[%clk 0:00:05]} 50. Kxc5 {[%clk 0:00:17]}  Kf2 {[%clk 0:00:04]} 51. b4 {[%clk 0:00:18]}  g3 {[%clk 0:00:04]} 52. b5 {[%clk 0:00:19]}  g2 {[%clk 0:00:03]} 53. b6 {[%clk 0:00:20]}  g1=Q {[%clk 0:00:04]} 54. b7 {[%clk 0:00:21]}  Qb1 {[%clk 0:00:03]} 55. Kc6 {[%clk 0:00:21]}  Qxb7+ {[%clk 0:00:02]} 56. Kxb7 {[%clk 0:00:22]}  Kxe3 {[%clk 0:00:03]} 57. Kc6 {[%clk 0:00:23]}  f4 {[%clk 0:00:03]} 58. Kc5 {[%clk 0:00:23]}  f3 {[%clk 0:00:03]} 59. Kd6 {[%clk 0:00:24]}  f2 {[%clk 0:00:04]} 60. Kd5 {[%clk 0:00:24]}  f1=Q {[%clk 0:00:04]} 61. Ke5 {[%clk 0:00:25]}  Qd3 {[%clk 0:00:03]} 62. Ke6 {[%clk 0:00:26]}  Qe4+ {[%clk 0:00:02]} 63. Kd6 {[%clk 0:00:27]}  Kd4 {[%clk 0:00:02]} 64. Kc7 {[%clk 0:00:27]}  Qe5+ {[%clk 0:00:02]} 65. Kb6 {[%clk 0:00:27]}  Qd5 {[%clk 0:00:02]} 66. Ka6 {[%clk 0:00:27]}  Kc4 {[%clk 0:00:02]} 67. Ka7 {[%clk 0:00:28]} 1/2-1/2


[Site "https://www.chess.com"]